{"text_format":"1","workbook":"xlsx","n_sheets":1,"sheets":["PROGRAMA"],"not_rendered":{"charts":0,"images":0,"macros":1,"external_links":0,"defined_names":5,"comments":1,"pivot_tables":0},"unopened":[],"bounds":{"document_bytes":16777216,"sheet_cells":100000,"rows_first":2000,"rows_last":500,"rows_between":2000,"halvings":0,"cell_chars":16384,"cell_head_chars":4096},"cells_cut":0,"cells_raw":0,"read":"whole","date_system":"1900"}

{"sheet":"PROGRAMA","index":0,"n_rows":163,"n_cols":21,"rows_kept":163,"cut":false,"hidden":false,"merged":[[3,0,3,11],[4,0,6,0],[4,11,6,11],[3,18,3,20]]}
["AGENTE ",null,"FECHA ",null,null,null,null,null,null,null,null,null,null,"ACP"]
[null,null,null,null,null,null,null,null,null,null,null,null,null,"AES"]
[null,null,null,null,null,null,null,null,null,null,null,null,null,"AES-CHANG"]
["PROGRAMAS PRELIMINARES EXPORTACION ( MW) (EMPRESA CONTRAPARTE)",null,null,null,null,null,null,null,null,null,null,null,null,"ALTOVALLE",null,null,null,"PAISES","VALORES DE BUSQUEDA"]
["HORA\nCENTROAMERICANA",null,null,null,null,null,null,null,null,null,null,"TOTAL\nMW",null,"ANSA","AMATEX","CNFFF",{"$f":"TODAY()-360","v":"2022-07-23"},"COSTA RICA","COSTARICA","COSTARICA","5GICE"]
[null,null,null,null,null,null,null,null,null,null,null,null,null,"CALDERA","AMM","CNFF",{"$f":"TODAY()+360","v":"2024-07-12"},"NICARAGUA","COSTARICA","COSTARICA","5DICE"]
[null,null,null,null,null,null,null,null,null,null,null,null,null,"C-ELETA","C01","CF",null,"HONDURAS","NICARAGUA","NICARAGUA","4DDISNORTE"]
["00:00:00",null,null,null,null,null,null,null,null,null,null,{"$f":"B8+C8+D8+E8+F8+G8+H8+I8+J8+K8","v":0},null,"CELSIAALT","C02",null,null,"EL SALVADOR","NICARAGUA","NICARAGUA","4DDISSUR"]
["01:00:00",null,null,null,null,null,null,null,null,null,null,0,null,"CELSIABLM","C03",null,null,"GUATEMALA","NICARAGUA","NICARAGUA","4DENELBLUE"]
["02:00:00",null,null,null,null,null,null,null,null,null,null,0,null,"CELSIABON","C06",null,null,null,"NICARAGUA","NICARAGUA","4DENELMULU"]
["03:00:00",null,null,null,null,null,null,null,null,null,null,0,null,"CELSIACENT","C07",null,null,null,"NICARAGUA","NICARAGUA","4DENELSIUN"]
["04:00:00",null,null,null,null,null,null,null,null,null,null,0,null,"CORPISTMO","C08",null,null,null,"NICARAGUA","NICARAGUA","4GAGRICORP"]
["05:00:00",null,null,null,null,null,null,null,null,null,null,0,null,"CSOLAR","C09",null,null,null,"NICARAGUA","NICARAGUA","4GALBANISA"]
["06:00:00",null,null,null,null,null,null,null,null,null,null,0,null,"DACONANSOL","C11",null,null,null,"NICARAGUA","NICARAGUA","4GAMAYO1"]
["07:00:00",null,null,null,null,null,null,null,null,null,null,0,null,"DESHIDCORP","C12",null,null,null,"NICARAGUA","NICARAGUA","4GAMAYO2"]
["08:00:00",null,null,null,null,null,null,null,null,null,null,0,null,"DSOLAR10","C13",null,null,null,"NICARAGUA","NICARAGUA","4GBPOWER"]
["09:00:00",null,null,null,null,null,null,null,null,null,null,0,null,"EGEISTMO","C15",null,null,null,"NICARAGUA","NICARAGUA","4GDISNORTE"]
["10:00:00",null,null,null,null,null,null,null,null,null,null,0,null,"EGESA","C17",null,null,null,"NICARAGUA","NICARAGUA","4GDISSUR"]
["11:00:00",null,null,null,null,null,null,null,null,null,null,0,null,"EISA","C22",null,null,null,"NICARAGUA","NICARAGUA","4GEEC-20"]
["12:00:00",null,null,null,null,null,null,null,null,null,null,0,null,"EMNADESA","C27",null,null,null,"NICARAGUA","NICARAGUA","4GEOLO"]
["13:00:00",null,null,null,null,null,null,null,null,null,null,0,null,"ENELSOLAR","CECSA",null,null,null,"NICARAGUA","NICARAGUA","4GGEOSA"]
["14:00:00",null,null,null,null,null,null,null,null,null,null,0,null,"ESEPSA","CEESA",null,null,null,"NICARAGUA","NICARAGUA","4GHEMCO"]
["15:00:00",null,null,null,null,null,null,null,null,null,null,0,null,"FORTUNA","CET",null,null,null,"NICARAGUA","NICARAGUA","4GMONTEROS"]
["16:00:00",null,null,null,null,null,null,null,null,null,null,0,null,"FOUNTAIN","CNDC",null,null,null,"NICARAGUA","NICARAGUA","4UAGRICORP"]
["17:00:00",null,null,null,null,null,null,null,null,null,null,0,null,"FSOLAR2","COASTAL",null,null,null,"NICARAGUA","NICARAGUA","4UALBANISA"]
["18:00:00",null,null,null,null,null,null,null,null,null,null,0,null,"GANA","COENESA",null,null,null,"NICARAGUA","NICARAGUA","4UAMAYO1"]
["19:00:00",null,null,null,null,null,null,null,null,null,null,0,null,"GENA","COMEGSA",null,null,null,"NICARAGUA","NICARAGUA","4UAMAYO2"]
["20:00:00",null,null,null,null,null,null,null,null,null,null,0,null,"GENISA","CONEC",null,null,null,"NICARAGUA","NICARAGUA","4UBPOWER"]
["21:00:00",null,null,null,null,null,null,null,null,null,null,0,null,"GENPED","D01",null,null,null,"NICARAGUA","NICARAGUA","4UCCN"]
["22:00:00",null,null,null,null,null,null,null,null,null,null,0,null,"GSOLAR","D02",null,null,null,"NICARAGUA","NICARAGUA","4UCHDN"]
["23:00:00",null,null,null,null,null,null,null,null,null,null,0,null,"HBOQUERON","D03",null,null,null,"NICARAGUA","NICARAGUA","4UEEC-20"]
[null,{"$f":"COUNTIF(B5:B7,\"<>\"&\"*\")","v":3},{"$f":"COUNTIF(C5:C7,\"<>\"&\"*\")","v":3},3,3,3,3,3,3,3,3,null,null,"HBTOTUMA","DISNORTE",null,null,null,"NICARAGUA","NICARAGUA","4UENSA"]
[null,null,null,null,null,null,null,null,null,null,null,null,null,"HCAISAN","DUKE",null,null,null,"NICARAGUA","NICARAGUA","4UEOLO"]
["GUATEMALA","EL SALVADOR","HONDURAS","NICARAGUA","COSTA RICA",null,null,null,null,null,null,null,null,"HIBERICA","ECONOENE",null,null,null,"NICARAGUA","NICARAGUA","4UGEOSA"]
[null,null,null,null,null,null,null,null,null,null,null,null,null,"HIDRO","EEC-20",null,null,null,"NICARAGUA","NICARAGUA","4UHOLCIM"]
["1CCOMCOELC","2C_C03","3GENEE","4DDISNORTE","5GICE",null,null,null,null,null,null,null,null,"HPIEDRA","EEGSA",null,null,null,"NICARAGUA","NICARAGUA","4UMONTEROS"]
["1CCOMCECEE","2C_C06","3DENEE","4DDISSUR","5DICE",null,null,null,null,null,null,null,null,"HTERIBE","ENATREL",null,null,null,"HONDURAS","HONDURAS","3DENEE"]
["1GGENCOEGE","2C_C08",null,"4GEEC-20",null,null,null,null,null,null,null,null,null,"HYDROPOWER","ENEE",null,null,null,"HONDURAS","HONDURAS","3GENEE"]
["1CCOMCOMCO","2C_C11",null,"4UGEOSA",null,null,null,null,null,null,null,null,null,"IDEALPMA","ENEE-HN",null,null,null,"ELSALVADOR","ELSALVADOR","2C_C03"]
["1CCOMCOEND","2C_C15",null,"4UHOLCIM",null,null,null,null,null,null,null,null,null,"JINRO","ENTRESAM",null,null,null,"ELSALVADOR","ELSALVADOR","2C_C05"]
["1TCOMCOELG","2C_C17",null,"4GALBANISA",null,null,null,null,null,null,null,null,null,"KANAN","EPTHON",null,null,null,"ELSALVADOR","ELSALVADOR","2C_C06"]
["1CCOMCOELG","2C_C27",null,"4UALBANISA",null,null,null,null,null,null,null,null,null,"MINERAPMA","EXCELERG",null,null,null,"ELSALVADOR","ELSALVADOR","2C_C07"]
["1CCOMCOMEL","2C_C34",null,"4UBPOWER",null,null,null,null,null,null,null,null,null,"PANAM","G01",null,null,null,"ELSALVADOR","ELSALVADOR","2C_C08"]
["1TCOMCOMEL","2D_D01",null,"4GBPOWER",null,null,null,null,null,null,null,null,null,"PANASOLAR","G02",null,null,null,"ELSALVADOR","ELSALVADOR","2C_C11"]
["1CCOMECONO","2D_D02",null,"4UCCN",null,null,null,null,null,null,null,null,null,"P-ANCHO","G03",null,null,null,"ELSALVADOR","ELSALVADOR","2C_C12"]
["1DDISEEGTN","2D_D03",null,"4UAMAYO1",null,null,null,null,null,null,null,null,null,"PEDREGAL","G05",null,null,null,"ELSALVADOR","ELSALVADOR","2C_C15"]
["1GGENCONCE","2G_G02",null,"4GAMAYO1",null,null,null,null,null,null,null,null,null,"PERLANORT","G06",null,null,null,"ELSALVADOR","ELSALVADOR","2C_C17"]
["1UGUSDUEGC","2G_G05",null,"4UAMAYO2",null,null,null,null,null,null,null,null,null,"PERLASUR","GDUKE",null,null,null,"ELSALVADOR","ELSALVADOR","2C_C27"]
["1GGENDUEGC","2C_C32",null,"4GAMAYO2",null,null,null,null,null,null,null,null,null,"PSOLAR2","GECSA",null,null,null,"ELSALVADOR","ELSALVADOR","2C_C31"]
["1GGENGEELC","2C_C07",null,"4UAGRICORP",null,null,null,null,null,null,null,null,null,"PSZ1","GECSAGUA",null,null,null,"ELSALVADOR","ELSALVADOR","2C_C32"]
["1GGENHIXAC","2C_C12",null,"4GAGRICORP",null,null,null,null,null,null,null,null,null,"RCHICO","GENINTEL",null,null,null,"ELSALVADOR","ELSALVADOR","2C_C33"]
["1GGENGEELN","2C_C31",null,"4UENSA",null,null,null,null,null,null,null,null,null,"SAZUEROVEN","GENOR",null,null,null,"ELSALVADOR","ELSALVADOR","2C_C34"]
["1GGENINGMA","2C_C05",null,"4UEEC-20",null,null,null,null,null,null,null,null,null,"SCOCLEVEN","GEOSA",null,null,null,"ELSALVADOR","ELSALVADOR","2C_C35"]
["1TGENINGMA","2D_D04",null,"4UEOLO",null,null,null,null,null,null,null,null,null,"SFRAN","GLOBELEQ",null,null,null,"ELSALVADOR","ELSALVADOR","2C_C44"]
["1CCOMPOLIW","2D_D05",null,"4GEOLO",null,null,null,null,null,null,null,null,null,"SLORENZO","HIDROGES",null,null,null,"ELSALVADOR","ELSALVADOR","2C_C45"]
["1CCOMMAYEL","2D_D08",null,"4GGEOSA",null,null,null,null,null,null,null,null,null,"SPMAVEN","HOLCIM",null,null,null,"ELSALVADOR","ELSALVADOR","2C_C51"]
["1GGENINVAT","2C_C35",null,"4GMONTEROS",null,null,null,null,null,null,null,null,null,"TECNISOL1","ICE",null,null,null,"ELSALVADOR","ELSALVADOR","2C_C53"]
["1GGENPANTA","2C_C33",null,"4UMONTEROS",null,null,null,null,null,null,null,null,null,"TECNISOL2","ICE-OM",null,null,null,"ELSALVADOR","ELSALVADOR","2C_C55"]
["1CCOMRECGE",null,null,"4UCHDN",null,null,null,null,null,null,null,null,null,"TECNISOL3","POLIWATT",null,null,null,"ELSALVADOR","ELSALVADOR","2C_C59"]
["1TGENINGSD",null,null,"4GHEMCO",null,null,null,null,null,null,null,null,null,"TECNISOL4","SANTAANA",null,null,null,"ELSALVADOR","ELSALVADOR","2C_C63"]
["1GGENINGSD",null,null,null,null,null,null,null,null,null,null,null,null,"TROPITER","UT-SV",null,null,null,"ELSALVADOR","ELSALVADOR","2C_C65"]
["1GGENTACAE",null,null,null,null,null,null,null,null,null,null,null,null,"UCETESA",null,null,null,null,"ELSALVADOR","ELSALVADOR","2D_D01"]
["1GGENTECNO",null,null,null,null,null,null,null,null,null,null,null,null,"UEPPME2",null,null,null,null,"ELSALVADOR","ELSALVADOR","2D_D02"]
["1CCOMBRENC",null,null,null,null,null,null,null,null,null,null,null,null,null,null,null,null,null,"ELSALVADOR","ELSALVADOR","2D_D03"]
["1UGUSCARPR",null,null,null,null,null,null,null,null,null,null,null,null,null,null,null,null,null,"ELSALVADOR","ELSALVADOR","2D_D04"]
["1GGENCGESJ",null,null,null,null,null,null,null,null,null,null,null,null,null,null,null,null,null,"ELSALVADOR","ELSALVADOR","2D_D05"]
["1CCOMCOELP",null,null,null,null,null,null,null,null,null,null,null,null,null,null,null,null,null,"ELSALVADOR","ELSALVADOR","2D_D08"]
[null,null,null,null,null,null,null,null,null,null,null,null,null,null,null,null,null,null,"ELSALVADOR","ELSALVADOR","2G_C24"]
[null,null,null,null,null,null,null,null,null,null,null,null,null,null,null,null,null,null,"ELSALVADOR","ELSALVADOR","2G_G02"]
["1GGENCOELL",null,null,null,null,null,null,null,null,null,null,null,null,null,null,null,null,null,"ELSALVADOR","ELSALVADOR","2G_G05"]
["1CCOMCONEL",null,null,null,null,null,null,null,null,null,null,null,null,null,null,null,null,null,"GUATEMALA","GUATEMALA","1CCOMBORAX"]
["1DDISDEOCT",null,null,null,null,null,null,null,null,null,null,null,null,null,null,null,null,null,"GUATEMALA","GUATEMALA","1CCOMBRENC"]
["1DDISDEORT",null,null,null,null,null,null,null,null,null,null,null,null,null,null,null,null,null,"GUATEMALA","GUATEMALA","1CCOMCECEE"]
["1GGENPILAR",null,null,null,null,null,null,null,null,null,null,null,null,null,null,null,null,null,"GUATEMALA","GUATEMALA","1CCOMCOELC"]
["1UGUSEPSTC",null,null,null,null,null,null,null,null,null,null,null,null,null,null,null,null,null,"GUATEMALA","GUATEMALA","1CCOMCOELG"]
["1UGUSFRG01",null,null,null,null,null,null,null,null,null,null,null,null,null,null,null,null,null,"GUATEMALA","GUATEMALA","1CCOMCOELP"]
["1UGUSFRG09",null,null,null,null,null,null,null,null,null,null,null,null,null,null,null,null,null,"GUATEMALA","GUATEMALA","1CCOMCOEND"]
["1UGUSFRG11",null,null,null,null,null,null,null,null,null,null,null,null,null,null,null,null,null,"GUATEMALA","GUATEMALA","1CCOMCOGUE"]
["1UGUSGALRE",null,null,null,null,null,null,null,null,null,null,null,null,null,null,null,null,null,"GUATEMALA","GUATEMALA","1CCOMCOMCO"]
["1GGENGENES",null,null,null,null,null,null,null,null,null,null,null,null,null,null,null,null,null,"GUATEMALA","GUATEMALA","1CCOMCOMEL"]
["1GGDRHIDSD",null,null,null,null,null,null,null,null,null,null,null,null,null,null,null,null,null,"GUATEMALA","GUATEMALA","1CCOMCONEL"]
["1UGUSIRTRA",null,null,null,null,null,null,null,null,null,null,null,null,null,null,null,null,null,"GUATEMALA","GUATEMALA","1CCOMCUCOE"]
["1UGUSPAFDG",null,null,null,null,null,null,null,null,null,null,null,null,null,null,null,null,null,"GUATEMALA","GUATEMALA","1CCOMECONO"]
["1GGENPUQPL",null,null,null,null,null,null,null,null,null,null,null,null,null,null,null,null,null,"GUATEMALA","GUATEMALA","1CCOMEDECS"]
["1UGUSRAEMI",null,null,null,null,null,null,null,null,null,null,null,null,null,null,null,null,null,"GUATEMALA","GUATEMALA","1CCOMELPOM"]
["1GGENRENAC",null,null,null,null,null,null,null,null,null,null,null,null,null,null,null,null,null,"GUATEMALA","GUATEMALA","1CCOMENEGU"]
["1TGENSIDGU",null,null,null,null,null,null,null,null,null,null,null,null,null,null,null,null,null,"GUATEMALA","GUATEMALA","1CCOMENGPG"]
["1GGENSIDGU",null,null,null,null,null,null,null,null,null,null,null,null,null,null,null,null,null,"GUATEMALA","GUATEMALA","1CCOMGEOEN"]
["1UGUSTIWSG",null,null,null,null,null,null,null,null,null,null,null,null,null,null,null,null,null,"GUATEMALA","GUATEMALA","1CCOMIONEN"]
["1UGUSACUAM",null,null,null,null,null,null,null,null,null,null,null,null,null,null,null,null,null,"GUATEMALA","GUATEMALA","1CCOMMAYEL"]
[null,null,null,null,null,null,null,null,null,null,null,null,null,null,null,null,null,null,"GUATEMALA","GUATEMALA","1CCOMMERGU"]
["1UGUSAGJIC",null,null,null,null,null,null,null,null,null,null,null,null,null,null,null,null,null,"GUATEMALA","GUATEMALA","1CCOMPOLIW"]
["1UGUSALISL",null,null,null,null,null,null,null,null,null,null,null,null,null,null,null,null,null,"GUATEMALA","GUATEMALA","1CCOMRECGE"]
["1CCOMCOGUE",null,null,null,null,null,null,null,null,null,null,null,null,null,null,null,null,null,"GUATEMALA","GUATEMALA","1CCOMSOLGU"]
["1DDISDEOCN",null,null,null,null,null,null,null,null,null,null,null,null,null,null,null,null,null,"GUATEMALA","GUATEMALA","1CCOMVIELG"]
["1UGUSFRG07",null,null,null,null,null,null,null,null,null,null,null,null,null,null,null,null,null,"GUATEMALA","GUATEMALA","1CCOMWATTS"]
["1UGUSGAMTE",null,null,null,null,null,null,null,null,null,null,null,null,null,null,null,null,null,"GUATEMALA","GUATEMALA","1DDISDEOCN"]
["1CCOMGEOEN",null,null,null,null,null,null,null,null,null,null,null,null,null,null,null,null,null,"GUATEMALA","GUATEMALA","1DDISDEOCT"]
["1UGUSGUAMO",null,null,null,null,null,null,null,null,null,null,null,null,null,null,null,null,null,"GUATEMALA","GUATEMALA","1DDISDEORN"]
["1GGENHIDRO",null,null,null,null,null,null,null,null,null,null,null,null,null,null,null,null,null,"GUATEMALA","GUATEMALA","1DDISDEORT"]
["1UGUSCPEOE",null,null,null,null,null,null,null,null,null,null,null,null,null,null,null,null,null,"GUATEMALA","GUATEMALA","1DDISEEGTN"]
["1CCOMSOLGU",null,null,null,null,null,null,null,null,null,null,null,null,null,null,null,null,null,"GUATEMALA","GUATEMALA","1DDISEEGTS"]
["1DDISDEORN",null,null,null,null,null,null,null,null,null,null,null,null,null,null,null,null,null,"GUATEMALA","GUATEMALA","1GGDRGEVEL"]
["1DDISEEGTS",null,null,null,null,null,null,null,null,null,null,null,null,null,null,null,null,null,"GUATEMALA","GUATEMALA","1GGDRHIDSD"]
["1GGENBIOEN",null,null,null,null,null,null,null,null,null,null,null,null,null,null,null,null,null,"GUATEMALA","GUATEMALA","1GGDRXOLPR"]
["1GGENINGUN",null,null,null,null,null,null,null,null,null,null,null,null,null,null,null,null,null,"GUATEMALA","GUATEMALA","1GGENALENR"]
["1GGDRGEVEL",null,null,null,null,null,null,null,null,null,null,null,null,null,null,null,null,null,"GUATEMALA","GUATEMALA","1GGENBIOEN"]
["1GGENGRGEO",null,null,null,null,null,null,null,null,null,null,null,null,null,null,null,null,null,"GUATEMALA","GUATEMALA","1GGENCAISA"]
["1CCOMMERGU",null,null,null,null,null,null,null,null,null,null,null,null,null,null,null,null,null,"GUATEMALA","GUATEMALA","1GGENCEAIG"]
[null,null,null,null,null,null,null,null,null,null,null,null,null,null,null,null,null,null,"GUATEMALA","GUATEMALA","1GGENCGESJ"]
[null,null,null,null,null,null,null,null,null,null,null,null,null,null,null,null,null,null,"GUATEMALA","GUATEMALA","1GGENCOEGE"]
[null,null,null,null,null,null,null,null,null,null,null,null,null,null,null,null,null,null,"GUATEMALA","GUATEMALA","1GGENCOELL"]
[null,null,null,null,null,null,null,null,null,null,null,null,null,null,null,null,null,null,"GUATEMALA","GUATEMALA","1GGENCONCE"]
[null,null,null,null,null,null,null,null,null,null,null,null,null,null,null,null,null,null,"GUATEMALA","GUATEMALA","1GGENDUEGC"]
[null,null,null,null,null,null,null,null,null,null,null,null,null,null,null,null,null,null,"GUATEMALA","GUATEMALA","1GGENENSAJ"]
[null,null,null,null,null,null,null,null,null,null,null,null,null,null,null,null,null,null,"GUATEMALA","GUATEMALA","1GGENESIES"]
[null,null,null,null,null,null,null,null,null,null,null,null,null,null,null,null,null,null,"GUATEMALA","GUATEMALA","1GGENGEELC"]
[null,null,null,null,null,null,null,null,null,null,null,null,null,null,null,null,null,null,"GUATEMALA","GUATEMALA","1GGENGEELN"]
[null,null,null,null,null,null,null,null,null,null,null,null,null,null,null,null,null,null,"GUATEMALA","GUATEMALA","1GGENGENES"]
[null,null,null,null,null,null,null,null,null,null,null,null,null,null,null,null,null,null,"GUATEMALA","GUATEMALA","1GGENGENMO"]
[null,null,null,null,null,null,null,null,null,null,null,null,null,null,null,null,null,null,"GUATEMALA","GUATEMALA","1GGENGENOC"]
[null,null,null,null,null,null,null,null,null,null,null,null,null,null,null,null,null,null,"GUATEMALA","GUATEMALA","1GGENGRGEO"]
[null,null,null,null,null,null,null,null,null,null,null,null,null,null,null,null,null,null,"GUATEMALA","GUATEMALA","1GGENHIDRO"]
[null,null,null,null,null,null,null,null,null,null,null,null,null,null,null,null,null,null,"GUATEMALA","GUATEMALA","1GGENHIXAC"]
[null,null,null,null,null,null,null,null,null,null,null,null,null,null,null,null,null,null,"GUATEMALA","GUATEMALA","1GGENINGMA"]
[null,null,null,null,null,null,null,null,null,null,null,null,null,null,null,null,null,null,"GUATEMALA","GUATEMALA","1GGENINGSD"]
[null,null,null,null,null,null,null,null,null,null,null,null,null,null,null,null,null,null,"GUATEMALA","GUATEMALA","1GGENINGTU"]
[null,null,null,null,null,null,null,null,null,null,null,null,null,null,null,null,null,null,"GUATEMALA","GUATEMALA","1GGENINGUN"]
[null,null,null,null,null,null,null,null,null,null,null,null,null,null,null,null,null,null,"GUATEMALA","GUATEMALA","1GGENINVAT"]
[null,null,null,null,null,null,null,null,null,null,null,null,null,null,null,null,null,null,"GUATEMALA","GUATEMALA","1GGENJAEGL"]
[null,null,null,null,null,null,null,null,null,null,null,null,null,null,null,null,null,null,"GUATEMALA","GUATEMALA","1GGENLUFEG"]
[null,null,null,null,null,null,null,null,null,null,null,null,null,null,null,null,null,null,"GUATEMALA","GUATEMALA","1GGENOEGYC"]
[null,null,null,null,null,null,null,null,null,null,null,null,null,null,null,null,null,null,"GUATEMALA","GUATEMALA","1GGENPANTA"]
[null,null,null,null,null,null,null,null,null,null,null,null,null,null,null,null,null,null,"GUATEMALA","GUATEMALA","1GGENPILAR"]
[null,null,null,null,null,null,null,null,null,null,null,null,null,null,null,null,null,null,"GUATEMALA","GUATEMALA","1GGENPUQPL"]
[null,null,null,null,null,null,null,null,null,null,null,null,null,null,null,null,null,null,"GUATEMALA","GUATEMALA","1GGENRNACE"]
[null,null,null,null,null,null,null,null,null,null,null,null,null,null,null,null,null,null,"GUATEMALA","GUATEMALA","1GGENRENGU"]
[null,null,null,null,null,null,null,null,null,null,null,null,null,null,null,null,null,null,"GUATEMALA","GUATEMALA","1GGENSIDGU"]
[null,null,null,null,null,null,null,null,null,null,null,null,null,null,null,null,null,null,"GUATEMALA","GUATEMALA","1GGENTACAE"]
[null,null,null,null,null,null,null,null,null,null,null,null,null,null,null,null,null,null,"GUATEMALA","GUATEMALA","1GGENTECNO"]
[null,null,null,null,null,null,null,null,null,null,null,null,null,null,null,null,null,null,"GUATEMALA","GUATEMALA","1TCOMCOELG"]
[null,null,null,null,null,null,null,null,null,null,null,null,null,null,null,null,null,null,"GUATEMALA","GUATEMALA","1TCOMCOMEL"]
[null,null,null,null,null,null,null,null,null,null,null,null,null,null,null,null,null,null,"GUATEMALA","GUATEMALA","1TGENINGMA"]
[null,null,null,null,null,null,null,null,null,null,null,null,null,null,null,null,null,null,"GUATEMALA","GUATEMALA","1TGENINGSD"]
[null,null,null,null,null,null,null,null,null,null,null,null,null,null,null,null,null,null,"GUATEMALA","GUATEMALA","1TGENSIDGU"]
[null,null,null,null,null,null,null,null,null,null,null,null,null,null,null,null,null,null,"GUATEMALA","GUATEMALA","1UGUSACUAM"]
[null,null,null,null,null,null,null,null,null,null,null,null,null,null,null,null,null,null,"GUATEMALA","GUATEMALA","1UGUSAGJIC"]
[null,null,null,null,null,null,null,null,null,null,null,null,null,null,null,null,null,null,"GUATEMALA","GUATEMALA","1UGUSALISL"]
[null,null,null,null,null,null,null,null,null,null,null,null,null,null,null,null,null,null,"GUATEMALA","GUATEMALA","1UGUSCARPR"]
[null,null,null,null,null,null,null,null,null,null,null,null,null,null,null,null,null,null,"GUATEMALA","GUATEMALA","1UGUSCPEOE"]
[null,null,null,null,null,null,null,null,null,null,null,null,null,null,null,null,null,null,"GUATEMALA","GUATEMALA","1UGUSDUEGC"]
[null,null,null,null,null,null,null,null,null,null,null,null,null,null,null,null,null,null,"GUATEMALA","GUATEMALA","1UGUSEPSTC"]
[null,null,null,null,null,null,null,null,null,null,null,null,null,null,null,null,null,null,"GUATEMALA","GUATEMALA","1UGUSFRG01"]
[null,null,null,null,null,null,null,null,null,null,null,null,null,null,null,null,null,null,"GUATEMALA","GUATEMALA","1UGUSFRG07"]
[null,null,null,null,null,null,null,null,null,null,null,null,null,null,null,null,null,null,"GUATEMALA","GUATEMALA","1UGUSFRG09"]
[null,null,null,null,null,null,null,null,null,null,null,null,null,null,null,null,null,null,"GUATEMALA","GUATEMALA","1UGUSFRG11"]
[null,null,null,null,null,null,null,null,null,null,null,null,null,null,null,null,null,null,"GUATEMALA","GUATEMALA","1UGUSGALRE"]
[null,null,null,null,null,null,null,null,null,null,null,null,null,null,null,null,null,null,"GUATEMALA","GUATEMALA","1UGUSGAMTE"]
[null,null,null,null,null,null,null,null,null,null,null,null,null,null,null,null,null,null,"GUATEMALA","GUATEMALA","1UGUSGUAMO"]
[null,null,null,null,null,null,null,null,null,null,null,null,null,null,null,null,null,null,"GUATEMALA","GUATEMALA","1UGUSIRTRA"]
[null,null,null,null,null,null,null,null,null,null,null,null,null,null,null,null,null,null,"GUATEMALA","GUATEMALA","1UGUSPAFDG"]
[null,null,null,null,null,null,null,null,null,null,null,null,null,null,null,null,null,null,"GUATEMALA","GUATEMALA","1UGUSRAEMI"]
[null,null,null,null,null,null,null,null,null,null,null,null,null,null,null,null,null,null,"GUATEMALA","GUATEMALA","1UGUSTIWSG"]